Workbook

Sheet 심의안건
A1: 2019년도 제5회 예천군 보조금심의위원회 대상자선정심의 조서
K2: (단위 : 천원)
A3: 부서명 | B3: 보 조 사 업 자 | C3: 보 조 사 업 명 | D3: 과목명 | E3: 사 업 내 용 | F3: 2018년 지원액 | G3: 계 | H3: 보조금 | I3: 자부담 | J3: 1차(해당부서) | K3: 2차(예산부서) | L3: 3차(위원회)
A4: 계 | C4: =SUBTOTAL(103,C5:C49)&"건" -> 41건 | F4: =F5+F8+F30+F46 -> 2,884,341 | G4: =G5+G8+G30+G46 -> 1,752,606 | H4: 922,203 | I4: 830,403 | J4: 922,203 | K4: 922,203 | L4: 922,203
A5: 환경관리과 소계 | C5: =SUBTOTAL(103,C6:C7)&"건" -> 2건 | F5: =SUM(F6:F7) -> 0 | G5: =SUM(G6:G7) -> 257,571 | H5: 79,543 | I5: 178,028 | J5: 79,543 | K5: 79,543 | L5: 79,543
A6: 환경관리과 | B6: 호명면 신O식 외 14명 (대상자 내역 별지) | C6: 예천군 전기자동차 민간보급사업 | D6: 민간자본사업보조 | E6: 50,000천원 * 1식 * 30% | F6: 0 | G6: 250,000 | H6: 75,000 | I6: 175,000 | J6: 75,000 | K6: 75,000 | L6: 75,000
A7: 환경관리과 | B7: 효자면 도효자로 1490-84 이O구 외 4명 (대상자 내역 별지) | C7: 야생동물 피해예방시설 설치 지원사업 | D7: 민간자본사업보조 | E7: 7,571천원 * 1식 * 60% | F7: 0 | G7: =SUM(H7:I7) -> 7,571 | H7: 4,543 | I7: 3,028 | J7: 4,543 | K7: 4,543 | L7: 4,543
A8: 농정과 소계 | C8: =SUBTOTAL(103,C9:C29)&"건" -> 21건 | F8: =SUM(F9:F29) -> 2,884,341 | G8: =SUM(G9:G29) -> 880,170 | H8: 477,485 | I8: 402,685 | J8: 477,485 | K8: 477,485 | L8: 477,485
A9: 농정과 | B9: 감천면 덕율4길 29-18 최O후 외 3명 (대상자 내역 별지) | C9: 청년창업농 영농정착 지원사업 | D9: 민간경상사업보조 | E9: 3,600천원 * 4명 | F9: 0 | G9: =SUM(H9:I9) -> 15,840 | H9: 14,400 | I9: 1,440 | J9: 14,400 | K9: 14,400 | L9: 14,400
A10: 농정과 | B10: 지보면 지풍로 31-4 오O인 외 7명 (대상자 내역 별지) | C10: 농업6차산업 활성화 대책지원사업 | D10: 민간경상사업보조 | E10: 3,000천원 * 8명 * 90% | F10: 0 | G10: =SUM(H10:I10) -> 24,000 | H10: 21,600 | I10: 2,400 | J10: 21,600 | K10: 21,600 | L10: 21,600
A11: 농정과 | B11: 용문면 덕신길 195-9 박O서 외 2명 (대상자 내역 별지) | C11: 귀농인 영농기반 지원사업 | D11: 민간자본사업보조 | E11: 5,000천원 * 3식 * 80% | F11: 0 | G11: 15,000 | H11: 12,000 | I11: 3,000 | J11: 12,000 | K11: 12,000 | L11: 12,000
A12: 농정과 | B12: 감천면 충효로 1509-27 김O현 | C12: 중소형농업기계 지원 | D12: 민간자본사업보조 | E12: 2,000,000원 * 1대 * 50% | F12: 440,000 | G12: 2,000 | H12: 1,000 | I12: 1,000 | J12: 1,000 | K12: 1,000 | L12: 1,000
A13: 농정과 | B13: 효자면 도촌길 15 박O환 외 4명 (대상자 내역 별지) | C13: 맞춤형농업기계 지원 | D13: 민간자본사업보조 | E13: 2,000,000원 * 5대 * 50% | F13: 0 | G13: 10,000 | H13: 5,000 | I13: 5,000 | J13: 5,000 | K13: 5,000 | L13: 5,000
A14: 농정과 | B14: 호명면 호명로 545-5 배O정 | C14: 곡물건조기 지원(대형) | D14: 민간자본사업보조 | E14: 10,000천원 * 1대 * 50% | F14: 175,000 | G14: 10,000 | H14: 5,000 | I14: 5,000 | J14: 5,000 | K14: 5,000 | L14: 5,000
A15: 농정과 | B15: 풍양면 괴당1길 315-23 이O선 | C15: 육묘용 파종기 지원 | D15: 민간자본사업보조 | E15: 3,000천원*1대*50% | F15: 30,000 | G15: 3,000 | H15: 1,500 | I15: 1,500 | J15: 1,500 | K15: 1,500 | L15: 1,500
A16: 농정과 | B16: 예천읍 용산작목반 외 39개소 (대상자 내역 별지) | C16: 친환경농법 단지조성 지원사업 | D16: 민간자본사업보조 | E16: 종합지원 1,000천원 * 25ha * 70% 인증단지 1,000천원 * 124ha * 50% 실천단지 3,000천원 * 1,127ha * 50% | F16: 262,630 | G16: 487,100 | H16: 248,550 | I16: 238,550 | J16: 248,550 | K16: 248,550 | L16: 248,550
A17: 농정과 | B17: 효자면 용소마길 46 김O옥 외 3명 (대상자 내역 별지) | C17: 과수생력화기자재지원 (과수전동가위) | D17: 민간자본사업보조 | E17: 1,600천원 * 4대 * 50% | G17: 6,400 | H17: 3,200 | I17: 3,200 | J17: 3,200 | K17: 3,200 | L17: 3,200
A18: 농정과 | B18: 예천읍 한천길 39 박O국 외 3명 (대상자 내역 별지) | C18: 소득작목육성지원사업 | D18: 민간자본사업보조 | E18: 13,060천원 * 1식 * 50% | F18: 951,031 | G18: 13,060 | H18: 6,530 | I18: 6,530 | J18: 6,530 | K18: 6,530 | L18: 6,530
A19: 농정과 | B19: 예천읍 왕신1리길 57김O혁 외 5명 (대상자 내역 별지) | C19: 원예산업육성지원사업 | D19: 민간자본사업보조 | E19: 24,600천원 * 1식 * 50% | F19: 904,180 | G19: 24,600 | H19: 12,300 | I19: 12,300 | J19: 12,300 | K19: 12,300 | L19: 12,300
A20: 농정과 | B20: 은풍면 조고리길 박O서 외 14명 (대상자 내역 별지) | C20: 우수 농특산물 포장재 개선지원 | D20: 민감자본사업보조 | E20: 102,000천원* 15식 * 50% | F20: 87,500 | G20: 102,000 | H20: 51,000 | I20: 51,000 | J20: 51,000 | K20: 51,000 | L20: 51,000
A21: 농정과 | B21: 보문면 무근열길 173 김O중 외 7명 (대상자 내역 별지) | C21: 밭작물 폭염(가뭄)피해 예방사업 | D21: 민간자본사업보조 | E21: 5,400천원 * 1식 * 70% | F21: 0 | G21: 5,400 | H21: 3,780 | I21: 1,620 | J21: 3,780 | K21: 3,780 | L21: 3,780
A22: 농정과 | B22: 호명면 종산길 203-25 이혁희 | C22: 농약안전보관함 설치 지원사업 | D22: 민간자본사업보조 | E22: 320천원 * 1식 * 50% | F22: 0 | G22: 320 | H22: 160 | I22: 160 | J22: 160 | K22: 160 | L22: 160
A23: 농정과 | B23: 호명면 호명로 246-59 이충희 | C23: 벼 육묘 녹화장(소형) 설치 지원사업 | D23: 민간자본사업보조 | E23: 11,000천원 * 1식 * 50% | F23: 0 | G23: 11,000 | H23: 5,500 | I23: 5,500 | J23: 5,500 | K23: 5,500 | L23: 5,500
A24: 농정과 | B24: 감천면 수한1길 141-117 수한율무재배단지 대표 김O직 외 3명(대상자 내역 별지) | C24: 토종곡물 재배단지 지원 | D24: 민간자본사업보조 | E24: 1,000천원 * 16ha * 70% | F24: 22,000 | G24: 16,000 | H24: 11,200 | I24: 4,800 | J24: 11,200 | K24: 11,200 | L24: 11,200
A25: 농정과 | B25: 감천면 수한1길 141-117 수한율무재배단지 대표 김O직 외 2명(대상자 내역 별지) | C25: 콩,맥류,토종곡물 재배단지 장비 지원 | D25: 민간자본사업보조 | E25: 37,700천원 * 1식 * 70% | F25: 12,000 | G25: 37,700 | H25: 26,390 | I25: 11,310 | J25: 26,390 | K25: 26,390 | L25: 26,390
A26: 농정과 | B26: 호명면 한어길 284 박O화 외 1명 (대상자 내역 별지) | C26: 벼 육묘공장(소형) 설치 지원사업 | D26: 민간자본사업보조 | E26: 42,000천원 * 2개소 * 50% | G26: 84,000 | H26: 42,000 | I26: 42,000 | J26: 42,000 | K26: 42,000 | L26: 42,000
A27: 농정과 | B27: 은풍면 부용봉길 129-13 남O건 외 4명 (대상자 내역 별지) | C27: 공공비축미 매입용 톤백저울 지원사업 | D27: 민간경상사업보조 | E27: 1,000천원 * 5대 * 50% | G27: 5,000 | H27: 2,500 | I27: 2,500 | J27: 2,500 | K27: 2,500 | L27: 2,500
A28: 농정과 | B28: 호명면 인포길 52-11 우O윤 | C28: 공공비축미 매입용 파렛트 지원사업 | D28: 민간자본사업보조 | E28: 50천원 * 35개 * 50% | G28: 1,750 | H28: 875 | I28: 875 | J28: 875 | K28: 875 | L28: 875
A29: 농정과 | B29: 지보면 예지로 667 박O분 | C29: 공공비축미 보관창고 개보수 지원사업 | D29: 민간자본사업보조 | E29: 3,000천원 * 2개소 * 50% | G29: 6,000 | H29: 3,000 | I29: 3,000 | J29: 3,000 | K29: 3,000 | L29: 3,000
A30: 산림축산과 소계 | C30: =SUBTOTAL(103,C31:C45)&"건" -> 15건 | F30: =SUBTOTAL(9,F31:F34) -> 0 | G30: =SUBTOTAL(9,G31:G45) -> 476,150 | H30: =SUBTOTAL(9,H31:H45) -> 239,372 | I30: 236,778 | J30: 239,372 | K30: 239,372 | L30: 239,372
A31: 산림축산과 | B31: 은풍면 부용봉길 19 권O혁 외 1명 (대상자 내역 별지) | C31: 임산물 생산기반조성사업 | D31: 민간자본사업보조 | E31: 35,000천원 * 1식 * 40% | F31: 0 | G31: =SUM(H31:I31) -> 35,000 | H31: 14,000 | I31: 21,000 | J31: 14,000 | K31: 14,000 | L31: 14,000
A32: 산림축산과 | B32: 은풍면 부용봉길 19 박O순외 3명 (대상자 내역 별지) | C32: 임산물 유통기반조성(가공장비) | D32: 민간자본사업보조 | E32: 26,920천원 * 1식 * 40% | F32: 0 | G32: =SUM(H32:I32) -> 26,920 | H32: 10,768 | I32: 16,152 | J32: 10,768 | K32: 10,768 | L32: 10,768
A33: 산림축산과 | B33: 은풍면 조고리길 123 남O덕 외 3명 (대상자 내역 별지) | C33: 임산물 유통기반조성 (저장건조시설) | D33: 민간자본사업보조 | E33: 32,600천원 * 1식 * 40% | F33: 0 | G33: 32,600 | H33: 13,040 | I33: 19,560 | J33: 13,040 | K33: 13,040 | L33: 13,040
A34: 산림축산과 | B34: 은풍면 은풍준시길 44-10 최O만 외 2명 (대상자 내역 별지) | C34: 산림작물 생산단지조성(소액) | D34: 민간자본사업보조 | E34: 60,770천원 * 1식 * 40% | F34: 0 | G34: 60,770 | H34: 24,308 | I34: 36,462 | J34: 24,308 | K34: 24,308 | L34: 24,308
A35: 산림축산과 | B35: 지보면 마산길 189-7 노O숙 외 84명 | C35: 꿀벌화분 지원사업 | D35: 민간자본사업보조 | E35: 8천원 * 5,200kg * 60% | G35: 41,600 | H35: 24,960 | I35: 16,640 | J35: 24,960 | K35: 24,960 | L35: 24,960
A36: 산림축산과 | B36: 예천읍 양궁로 안O식 외 276명 (대상자 내역 별지) | C36: 면역강화용사료첨가제지원사업 | D36: 민간자본사업보조 | E36: 30천원 * 6,590포 * 50% | G36: 197,700 | H36: 98,850 | I36: 98,850 | J36: 98,850 | K36: 98,850 | L36: 98,850
A37: 산림축산과 | B37: 용문면 상금시장길 18 윤O식 | C37: 곤포사일리지제조비닐랩지원사업 | D37: 민간자본사업보조 | E37: 100천원 * 4롤 * 30% | G37: 400 | H37: 120 | I37: 280 | J37: 120 | K37: 120 | L37: 120
A38: 산림축산과 | B38: 용문면 우망골길 102-4 심O보 외 2명 (대상자 내역 별지) | C38: 한우 수정란이식 지원사업 | D38: 민간자본사업보조 | E38: 400천원 * 10두 * 88,75% | G38: 4,000 | H38: 3,550 | I38: 450 | J38: 3,550 | K38: 3,550 | L38: 3,550
A39: 산림축산과 | B39: 감천면 도평길 6 김O현 | C39: 염소 사료급이기 지원사업 | D39: 민간자본사업보조 | E39: 200천원 * 2대 * 60% | G39: 400 | H39: 240 | I39: 160 | J39: 240 | K39: 240 | L39: 240
A40: 산림축산과 | B40: 개포면 용개로 1470 이O구 외 2명 (대상자 내역 별지) | C40: 염소 자동급수기 지원사업 | D40: 민간자본사업보조 | E40: 250천원 * 4대 * 60% | G40: 1,000 | H40: 600 | I40: 400 | J40: 600 | K40: 600 | L40: 600
A41: 산림축산과 | B41: 풍양면 흔전길 37 안O철 | C41: 축사 단열처리 지원사업 | D41: 민간자본사업보조 | E41: 10,000천원 * 1개소 *60% | G41: 10,000 | H41: 6,000 | I41: 4,000 | J41: 6,000 | K41: 6,000 | L41: 6,000
A42: 산림축산과 | B42: 예천읍 통명길 109-23 백O목 외 154명 (대상자내역별지) | C42: 깨끗한 축산환경 지원 (파리구제제 구입지원) | D42: 민간자본사업보조 | E42: 12천원 * 4,500포 * 70% | G42: 54,000 | H42: 37,800 | I42: 16,200 | J42: 37,800 | K42: 37,800 | L42: 37,800
A43: 산림축산과 | B43: 개포면 금동1길 24-10 한O환 | C43: 음수살포용 친환경 악취저감제 지원 | D43: 민간자본사업보조 | E43: 20천원 * 78포 * 60% | G43: 1,560 | H43: 936 | I43: 624 | J43: 936 | K43: 936 | L43: 936
A44: 산림축산과 | B44: 보문면 장수골길 21-8 안O완 | C44: 퇴비사 신축 지원사업 | D44: 민간자본사업보조 | E44: 9,000천원 * 100㎡ * 40% | G44: 9,000 | H44: 3,600 | I44: 5,400 | J44: 3,600 | K44: 3,600 | L44: 3,600
A45: 산림축산과 | B45: 풍양면 풍신길 272-3 정O주 외2명 | C45: 축산분뇨처리용 톱밥지원사업 | D45: 민간자본사업보조 | E45: 3천원 * 400포 * 50% | G45: 1,200 | H45: 600 | I45: 600 | J45: 600 | K45: 600 | L45: 600
A46: 건축과 소계 | C46: =SUBTOTAL(103,C47:C58)&"건" -> 3건 | F46: =SUBTOTAL(9,F47:F58) -> 0 | G46: 138,715 | H46: 125,803 | I46: 12,912 | J46: 125,803 | K46: 125,803 | L46: 125,803
A47: 건축과 | B47: 용문면 두천리 396-3, 손O숙 외 15명 (대상자 내역 별지) | C47: 농촌빈집정비지원사업 | D47: 민간자본사업보조 | E47: 9,600천원 * 1식 | G47: =SUM(H47:I47) -> 9,600 | H47: 9,600 | J47: =G47 -> 9,600 | K47: =H47 -> 9,600 | L47: 9,600
A48: 건축과 | B48: 대영연립주택 | C48: 공동주택관리 지원사업 | D48: 민간자본사업보조 | E48: 대영연립주택 칼라강판 지붕 덧씌우기 1식 | G48: 85,115 | H48: 76,603 | I48: 8,512 | J48: 76,603 | K48: 76,603 | L48: 76,603
A49: 건축과 | B49: 삼우목련아파트 | C49: 공동주택관리 지원사업 | D49: 민간자본사업보조 | E49: 삼우목련아파트 오수관로공사 및 담장 교체 1식 | G49: 44,000 | H49: 39,600 | I49: 4,400 | J49: 39,600 | K49: 39,600 | L49: 39,600

Sheet 대상자별지내역
A1: 2019년도 제5회 예천군 보조금심의위원회 대상자내역 별지 조서
M2: (단위 : 천원)
A3: 부서명 | B3: 보 조 사 업 자 | E3: 보 조 사 업 명 | F3: 과목명 | G3: 사 업 내 용 | H3: 2018년 지원액 | I3: 계 | J3: 보조금 | K3: 자부담 | L3: 1차(해당부서) | M3: 2차(예산부서) | N3: 3차(위원회)
B4: 주소 | D4: 성명
A5: 소계 | E5: =SUBTOTAL(103,E6:E17) -> 12 | H5: =SUBTOTAL(9,H6:H17) -> 0 | I5: =SUBTOTAL(9,I6:I25) -> 257,571 | J5: =SUBTOTAL(9,J6:J25) -> 79,543 | K5: 178,028 | L5: 79,543 | M5: 79,543 | N5: 79,543
A6: 환경관리과 | B6: 예천군 호명면 행복4길 25 가동 329호 | C6: =REPLACE(D6,2,1,"O") -> 신O식 | D6: 신정식 | E6: 예천군 전기자동차 민간보급사업 | F6: 민간자본사업보조 | G6: 50,000천원 * 1식 * 30% | H6: 0 | I6: 50,000 | J6: 15,000 | K6: 35,000 | L6: 15,000 | M6: 15,000 | N6: 15,000
A7: 환경관리과 | B7: 예천군 예천읍 역전길 6-9 . | C7: =REPLACE(D7,2,1,"O") -> 심O용 | D7: 심해용 | E7: 예천군 전기자동차 민간보급사업 | F7: 민간자본사업보조 | G7: 50,000천원 * 1식 * 30% | H7: 0 | I7: 50,000 | J7: 15,000 | K7: 35,000 | L7: 15,000 | M7: 15,000 | N7: 15,000
A8: 환경관리과 | B8: 예천군 호명면 노블리아1길 30 . | C8: =REPLACE(D8,2,1,"O") -> 김O희 | D8: 김인희 | E8: 예천군 전기자동차 민간보급사업 | F8: 민간자본사업보조 | G8: 50,000천원 * 1식 * 30% | H8: 0 | I8: 50,000 | J8: 15,000 | K8: 35,000 | L8: 15,000 | M8: 15,000 | N8: 15,000
A9: 환경관리과 | B9: 예천군 예천읍 옥반골길 21 . | C9: =REPLACE(D9,2,1,"O") -> 이O득 | D9: 이한득 | E9: 예천군 전기자동차 민간보급사업 | F9: 민간자본사업보조 | G9: 50,000천원 * 1식 * 30% | H9: 0 | I9: 50,000 | J9: 15,000 | K9: 35,000 | L9: 15,000 | M9: 15,000 | N9: 15,000
A10: 환경관리과 | B10: 예천군 호명면 행복로 230 202동 1001호 | C10: =REPLACE(D10,2,1,"O") -> 김O훈 | D10: 김동훈 | E10: 예천군 전기자동차 민간보급사업 | F10: 민간자본사업보조 | G10: 50,000천원 * 1식 * 30% | H10: 0 | I10: 50,000 | J10: 15,000 | K10: 35,000 | L10: 15,000 | M10: 15,000 | N10: 15,000
A11: 예비자 | B11: 예천군 예천읍 양궁로 83 102동 1006호 | C11: =REPLACE(D11,2,1,"O") -> 도O숙 | D11: 도경숙 | E11: 예천군 전기자동차 민간보급사업 | F11: 민간자본사업보조 | G11: 예비후보자
A12: 예비자 | B12: 예천군 예천읍 충효로 150 . | C12: =REPLACE(D12,2,1,"O") -> 류O선 | D12: 류지선 | E12: 예천군 전기자동차 민간보급사업 | F12: 민간자본사업보조 | G12: 예비후보자
A13: 예비자 | B13: 예천군 예천읍 역전길 44 | C13: =REPLACE(D13,2,1,"O") -> 김O연 | D13: 김갑연 | E13: 예천군 전기자동차 민간보급사업 | F13: 민간자본사업보조 | G13: 예비후보자
A14: 예비자 | B14: 예천군 호명면 행복로 230 202동 1302호 | C14: =REPLACE(D14,2,1,"O") -> 조O래 | D14: 조설래 | E14: 예천군 전기자동차 민간보급사업 | F14: 민간자본사업보조 | G14: 예비후보자
A15: 예비자 | B15: 예천군 예천읍 상동길 79 | C15: =REPLACE(D15,2,1,"O") -> 권O윤 | D15: 권세윤 | E15: 예천군 전기자동차 민간보급사업 | F15: 민간자본사업보조 | G15: 예비후보자
A16: 예비자 | B16: 예천군 예천읍 시장로 66 | C16: =REPLACE(D16,2,1,"O") -> 배O원 | D16: 배중원 | E16: 예천군 전기자동차 민간보급사업 | F16: 민간자본사업보조 | G16: 예비후보자
A17: 예비자 | B17: 예천군 호명면 검무로 27 306동 603호 | C17: =REPLACE(D17,2,1,"O") -> 박O경 | D17: 박부경 | E17: 예천군 전기자동차 민간보급사업 | F17: 민간자본사업보조 | G17: 예비후보자
A18: 예비자 | B18: 예천군 호명면 양지로 14 213동 1801호 | C18: =REPLACE(D18,2,1,"O") -> 윤O원 | D18: 윤상원 | E18: 예천군 전기자동차 민간보급사업 | F18: 민간자본사업보조 | G18: 예비후보자
A19: 예비자 | B19: 예천군 호명면 행복로 229 508동 1802호 | C19: =REPLACE(D19,2,1,"O") -> 정O기 | D19: 정은기 | E19: 예천군 전기자동차 민간보급사업 | F19: 민간자본사업보조 | G19: 예비후보자
A20: 예비자 | B20: 예천군 예천읍 봉덕로 52 101동 903호 | C20: =REPLACE(D20,2,1,"O") -> 엄O호 | D20: 엄용호 | E20: 예천군 전기자동차 민간보급사업 | F20: 민간자본사업보조 | G20: 예비후보자
A21: 환경관리과 | B21: 효자면 도효자로 1490-84 | C21: =REPLACE(D21,2,1,"O") -> 이O구 | D21: 이연구 | E21: 야생동물 피해예방시설 설치 지원사업 | F21: 민간자본사업보조 | G21: 2,571천원 * 1식 * 60% | I21: 2,571 | J21: 1,543 | K21: 1,028 | L21: 1,543 | M21: 1,543 | N21: 1,543
A22: 환경관리과 | B22: 효자면 도효자로 1481-6 | C22: =REPLACE(D22,2,1,"O") -> 박O식 | D22: 박배식 | E22: 야생동물 피해예방시설 설치 지원사업 | F22: 민간자본사업보조 | G22: 5,000천원 * 1식 * 60% | I22: 5,000 | J22: 3,000 | K22: 2,000 | L22: 3,000 | M22: 3,000 | N22: 3,000
A23: 예비자 | B23: 예천읍 효자로 40 | C23: =REPLACE(D23,2,1,"O") -> 오O주 | D23: 오현주 | E23: 야생동물 피해예방시설 설치 지원사업 | F23: 민간자본사업보조 | G23: 예비후보자
A24: 예비자 | B24: 서울시 광진구 아차산로 57 | C24: =REPLACE(D24,2,1,"O") -> 김O하 | D24: 김재하 | E24: 야생동물 피해예방시설 설치 지원사업 | F24: 민간자본사업보조 | G24: 예비후보자
A25: 예비자 | B25: 효자면 상보곡길 167 | C25: =REPLACE(D25,2,1,"O") -> 도O환 | D25: 도국환 | E25: 야생동물 피해예방시설 설치 지원사업 | F25: 민간자본사업보조 | G25: 예비후보자
A26: 소계 | E26: =SUBTOTAL(103,E27:E161) -> 135 | H26: =SUM(H27:H161) -> 257,000 | I26: =SUM(I27:I161) -> 846,100 | J26: =SUM(J27:J161) -> 460,450 | K26: =SUM(K27:K161) -> 385,650 | L26: 460,450 | M26: 460,450 | N26: 460,450
A27: 농정과 | B27: 감천면 덕율4길 29-18 | C27: =REPLACE(D27,2,1,"O") -> 최O후 | D27: 최창후 | E27: 청년창업농 영농정착 지원사업 | F27: 민간경상사업보조 | G27: 3,600천원 * 1식 | I27: 3,960 | J27: 3,600 | K27: 360 | L27: 3,600 | M27: 3,600 | N27: 3,600
A28: 농정과 | B28: 풍양면 영풍로 190-20 | C28: =REPLACE(D28,2,1,"O") -> 장O호 | D28: 장연호 | E28: 청년창업농 영농정착 지원사업 | F28: 민간경상사업보조 | G28: 3,600천원 * 1식 | I28: 3,960 | J28: 3,600 | K28: 360 | L28: 3,600 | M28: 3,600 | N28: 3,600
A29: 농정과 | B29: 호명면 새움3로 7, 105동 403호(아이파크) | C29: =REPLACE(D29,2,1,"O") -> 김O숙 | D29: 김미숙 | E29: 청년창업농 영농정착 지원사업 | F29: 민간경상사업보조 | G29: 3,600천원 * 1식 | I29: 3,960 | J29: 3,600 | K29: 360 | L29: 3,600 | M29: 3,600 | N29: 3,600
A30: 농정과 | B30: 호명면 양지로 14, 214동 1203호(호반베르디움2차) | C30: =REPLACE(D30,2,1,"O") -> 임O준 | D30: 임의준 | E30: 청년창업농 영농정착 지원사업 | F30: 민간경상사업보조 | G30: 3,600천원 * 1식 | I30: 3,960 | J30: 3,600 | K30: 360 | L30: 3,600 | M30: 3,600 | N30: 3,600
A31: 농정과 | B31: 지보면 지풍로 31-4 | C31: =REPLACE(D31,2,1,"O") -> 오O인 | D31: 오병인 | E31: 농업6차산업 활성화 대책지원사업 | F31: 민간경상사업보조 | G31: 3,000천원 * 1식 *90% | I31: 3,000 | J31: 2,700 | K31: 300 | L31: 2,700 | M31: 2,700 | N31: 2,700
A32: 농정과 | B32: 감천면 만맛길 93-8 | C32: =REPLACE(D32,2,1,"O") -> 조O광 | D32: 조동광 | E32: 농업6차산업 활성화 대책지원사업 | F32: 민간경상사업보조 | G32: 3,000천원 * 1식 *90% | I32: 3,000 | J32: 2,700 | K32: 300 | L32: 2,700 | M32: 2,700 | N32: 2,700
A33: 농정과 | B33: 풍양면 청운3리길 33 | C33: =REPLACE(D33,2,1,"O") -> 정O보 | D33: 정해보 | E33: 농업6차산업 활성화 대책지원사업 | F33: 민간경상사업보조 | G33: 3,000천원 * 1식 *90% | I33: 3,000 | J33: 2,700 | K33: 300 | L33: 2,700 | M33: 2,700 | N33: 2,700
A34: 농정과 | B34: 호명면 양지로 55, 모아엘가 106동 903호 | C34: =REPLACE(D34,2,1,"O") -> 박O범 | D34: 박기범 | E34: 농업6차산업 활성화 대책지원사업 | F34: 민간경상사업보조 | G34: 3,000천원 * 1식 *90% | I34: 3,000 | J34: 2,700 | K34: 300 | L34: 2,700 | M34: 2,700 | N34: 2,700
A35: 농정과 | B35: 개포면 종산골길 99 | C35: =REPLACE(D35,2,1,"O") -> 이O부 | D35: 이현부 | E35: 농업6차산업 활성화 대책지원사업 | F35: 민간경상사업보조 | G35: 3,000천원 * 1식 *90% | I35: 3,000 | J35: 2,700 | K35: 300 | L35: 2,700 | M35: 2,700 | N35: 2,700
A36: 농정과 | B36: 호명면 검무로 17, 106동 201호 | C36: =REPLACE(D36,2,1,"O") -> 전O영 | D36: 전준영 | E36: 농업6차산업 활성화 대책지원사업 | F36: 민간경상사업보조 | G36: 3,000천원 * 1식 *90% | I36: 3,000 | J36: 2,700 | K36: 300 | L36: 2,700 | M36: 2,700 | N36: 2,700
A37: 농정과 | B37: 풍양면 삼강로 1088-1 | C37: =REPLACE(D37,2,1,"O") -> 정O충 | D37: 정재충 | E37: 농업6차산업 활성화 대책지원사업 | F37: 민간경상사업보조 | G37: 3,000천원 * 1식 *90% | I37: 3,000 | J37: 2,700 | K37: 300 | L37: 2,700 | M37: 2,700 | N37: 2,700
A38: 농정과 | B38: 용문면 금당길실 68 | C38: =REPLACE(D38,2,1,"O") -> 신O민 | D38: 신현민 | E38: 농업6차산업 활성화 대책지원사업 | F38: 민간경상사업보조 | G38: 3,000천원 * 1식 *90% | I38: 3,000 | J38: 2,700 | K38: 300 | L38: 2,700 | M38: 2,700 | N38: 2,700
A39: 농정과 | B39: 용문면 덕신길 195-9 | C39: =REPLACE(D39,2,1,"O") -> 박O서 | D39: 박필서 | E39: 귀농인 영농기반 지원사업 | F39: 민간자본사업보조 | G39: 5,000천원 * 1식 * 80% | H39: 0 | I39: =SUM(J39:K39) -> 5,000 | J39: 4,000 | K39: 1,000 | L39: 4,000 | M39: 4,000 | N39: 4,000
A40: 농정과 | B40: 예천읍 대심3길 14-6 | C40: =REPLACE(D40,2,1,"O") -> 박O구 | D40: 박인구 | E40: 귀농인 영농기반 지원사업 | F40: 민간자본사업보조 | G40: 5,000천원 * 1식 * 80% | H40: 0 | I40: =SUM(J40:K40) -> 5,000 | J40: 4,000 | K40: 1,000 | L40: 4,000 | M40: 4,000 | N40: 4,000
A41: 농정과 | B41: 호명면 행복로 229, 509동 1802호 | C41: =REPLACE(D41,2,1,"O") -> 권O대 | D41: 권혁대 | E41: 귀농인 영농기반 지원사업 | F41: 민간자본사업보조 | G41: 5,000천원 * 1식 * 80% | H41: 0 | I41: 5,000 | J41: 4,000 | K41: 1,000 | L41: 4,000 | M41: 4,000 | N41: 4,000
A42: 농정과 | B42: 효자면 도촌길 15 | C42: =REPLACE(D42,2,1,"O") -> 박O환 | D42: 박익환 | E42: 맞춤형농기계지원사업 | F42: 민간자본사업보조 | G42: 2,000천원 * 1대 * 50% | I42: 2,000 | J42: 1,000 | K42: 1,000 | L42: 1,000 | M42: 1,000 | N42: 1,000
A43: 농정과 | B43: 감천면 도평길 68 | C43: =REPLACE(D43,2,1,"O") -> 배O태 | D43: 배영태 | E43: 맞춤형농기계지원사업 | F43: 민간자본사업보조 | G43: 2,000천원 * 1대 * 50% | I43: 2,000 | J43: 1,000 | K43: 1,000 | L43: 1,000 | M43: 1,000 | N43: 1,000
A44: 농정과 | B44: 풍양면 하풍길 36 | C44: =REPLACE(D44,2,1,"O") -> 오O화 | D44: 오순화 | E44: 맞춤형농기계지원사업 | F44: 민간자본사업보조 | G44: 2,000천원 * 1대 * 50% | I44: 2,000 | J44: 1,000 | K44: 1,000 | L44: 1,000 | M44: 1,000 | N44: 1,000
A45: 농정과 | B45: 풍양면 풍지로 448 | C45: =REPLACE(D45,2,1,"O") -> 김O갑 | D45: 김병갑 | E45: 맞춤형농기계지원사업 | F45: 민간자본사업보조 | G45: 2,000천원 * 1대 * 50% | I45: 2,000 | J45: 1,000 | K45: 1,000 | L45: 1,000 | M45: 1,000 | N45: 1,000
A46: 농정과 | B46: 개포면 우감2길 20 | C46: =REPLACE(D46,2,1,"O") -> 고O곤 | D46: 고대곤 | E46: 맞춤형농기계지원사업 | F46: 민간자본사업보조 | G46: 2,000천원 * 1대 * 50% | I46: 2,000 | J46: 1,000 | K46: 1,000 | L46: 1,000 | M46: 1,000 | N46: 1,000
A47: 농정과 | B47: 유천면 마천리 447 | C47: =REPLACE(D47,2,1,"O") -> 윤O주 | D47: 윤희주 | E47: 친환경농법단지조성지원사업 (친환경농법 종합지원) | F47: 민간자본사업보조 | G47: 1,000천원 * 2ha * 70% | H47: 1,400 | I47: 2,000 | J47: 1,400 | K47: 600 | L47: 1,400 | M47: 1,400 | N47: 1,400
A48: 농정과 | B48: 유천면 수심리 131-1 | C48: =REPLACE(D48,2,1,"O") -> 김O봉 | D48: 김상봉 | E48: 친환경농법단지조성지원사업 (친환경농법 종합지원) | F48: 민간자본사업보조 | G48: 1,000천원 * 2ha * 70% | H48: 1,400 | I48: 2,000 | J48: 1,400 | K48: 600 | L48: 1,400 | M48: 1,400 | N48: 1,400
A49: 농정과 | B49: 유천면 손기리 269-1 | C49: =REPLACE(D49,2,1,"O") -> 김O | D49: 김황 | E49: 친환경농법단지조성지원사업 (친환경농법 종합지원) | F49: 민간자본사업보조 | G49: 1,000천원 * 1ha * 70% | H49: 1,000 | I49: 1,000 | J49: 700 | K49: 300 | L49: 700 | M49: 700 | N49: 700
A50: 농정과 | B50: 개포면 송담길 142-24 | C50: =REPLACE(D50,2,1,"O") -> 남O호 | D50: 남기호 | E50: 친환경농법단지조성지원사업 (친환경농법 종합지원) | F50: 민간자본사업보조 | G50: 1,000천원 * 2ha * 70% | H50: 1,400 | I50: 2,000 | J50: 1,400 | K50: 600 | L50: 1,400 | M50: 1,400 | N50: 1,400
A51: 농정과 | B51: 개포면 종산골길 99 | C51: =REPLACE(D51,2,1,"O") -> 이O선 | D51: 이웅선 | E51: 친환경농법단지조성지원사업 (친환경농법 종합지원) | F51: 민간자본사업보조 | G51: 1,000천원 * 3ha * 70% | H51: 1,400 | I51: 3,000 | J51: 2,100 | K51: 900 | L51: 2,100 | M51: 2,100 | N51: 2,100
A52: 농정과 | B52: 풍양면 공덕길 141 | C52: =REPLACE(D52,2,1,"O") -> 김O원 | D52: 김병원 | E52: 친환경농법단지조성지원사업 (친환경농법 종합지원) | F52: 민간자본사업보조 | G52: 1,000천원 * 15ha * 70% | H52: 11,200 | I52: 15,000 | J52: 10,500 | K52: 4,500 | L52: 10,500 | M52: 10,500 | N52: 10,500
A53: 농정과 | B53: 예천읍 상동리 85-1 | C53: =REPLACE(D53,2,1,"O") -> 권O수 | D53: 권만수 | E53: 친환경농법단지조성지원사업 (친환경농법 종합지원) | F53: 민간자본사업보조 | G53: 1,000천원 * 5ha * 50% | H53: 5,000 | I53: 5,000 | J53: 2,500 | K53: 2,500 | L53: 2,500 | M53: 2,500 | N53: 2,500
A54: 농정과 | B54: 예천읍 가수내길 16-3 | C54: =REPLACE(D54,2,1,"O") -> 박O경 | D54: 박찬경 | E54: 친환경농법단지조성지원사업 (친환경농법 종합지원) | F54: 민간자본사업보조 | G54: 1,000천원 * 2ha * 50% | H54: 3,000 | I54: 2,000 | J54: 1,000 | K54: 1,000 | L54: 1,000 | M54: 1,000 | N54: 1,000
A55: 농정과 | B55: 용문면 양갓길 51 | C55: =REPLACE(D55,2,1,"O") -> 엄O태 | D55: 엄순태 | E55: 친환경농법단지조성지원사업 (친환경농법 종합지원) | F55: 민간자본사업보조 | G55: 1,000천원 * 6ha * 50% | H55: 2,500 | I55: 6,000 | J55: 3,000 | K55: 3,000 | L55: 3,000 | M55: 3,000 | N55: 3,000
A56: 농정과 | B56: 유천면 마천리 447 | C56: =REPLACE(D56,2,1,"O") -> 윤O주 | D56: 윤희주 | E56: 친환경농법단지조성지원사업 (친환경농법 종합지원) | F56: 민간자본사업보조 | G56: 1,000천원 * 4ha * 50% | H56: 3,000 | I56: 4,000 | J56: 2,000 | K56: 2,000 | L56: 2,000 | M56: 2,000 | N56: 2,000
A57: 농정과 | B57: 유천면 수심리 131-1 | C57: =REPLACE(D57,2,1,"O") -> 김O봉 | D57: 김상봉 | E57: 친환경농법단지조성지원사업 (친환경농법 종합지원) | F57: 민간자본사업보조 | G57: 1,000천원 * 21ha * 50% | H57: 11,500 | I57: 21,000 | J57: 10,500 | K57: 10,500 | L57: 10,500 | M57: 10,500 | N57: 10,500
A58: 농정과 | B58: 유천면 손기리 269-1 | C58: =REPLACE(D58,2,1,"O") -> 김O | D58: 김황 | E58: 친환경농법단지조성지원사업 (친환경농법 종합지원) | F58: 민간자본사업보조 | G58: 1,000천원 * 1ha * 50% | H58: 0 | I58: 1,000 | J58: 500 | K58: 500 | L58: 500 | M58: 500 | N58: 500
A59: 농정과 | B59: 용궁면 월오길 44 | C59: =REPLACE(D59,2,1,"O") -> 안O훈 | D59: 안상훈 | E59: 친환경농법단지조성지원사업 (친환경농법 종합지원) | F59: 민간자본사업보조 | G59: 1,000천원 * 1ha * 50% | H59: 500 | I59: 1,000 | J59: 500 | K59: 500 | L59: 500 | M59: 500 | N59: 500
A60: 농정과 | B60: 용궁면 경서로 1264 | C60: =REPLACE(D60,2,1,"O") -> 안O만 | D60: 안승만 | E60: 친환경농법단지조성지원사업 (친환경농법 종합지원) | F60: 민간자본사업보조 | G60: 1,000천원 * 9ha * 50% | H60: 14,000 | I60: 9,000 | J60: 4,500 | K60: 4,500 | L60: 4,500 | M60: 4,500 | N60: 4,500
A61: 농정과 | B61: 용궁면 대은길 41-1 | C61: =REPLACE(D61,2,1,"O") -> 윤O락 | D61: 윤창락 | E61: 친환경농법단지조성지원사업 (친환경농법 종합지원) | F61: 민간자본사업보조 | G61: 1,000천원 * 12ha * 50% | H61: 9,500 | I61: 12,000 | J61: 6,000 | K61: 6,000 | L61: 6,000 | M61: 6,000 | N61: 6,000
A62: 농정과 | B62: 용궁면 회룡길 175 | C62: =REPLACE(D62,2,1,"O") -> 조O중 | D62: 조현중 | E62: 친환경농법단지조성지원사업 (친환경농법 종합지원) | F62: 민간자본사업보조 | G62: 1,000천원 * 7ha * 50% | H62: 7,500 | I62: 7,000 | J62: 3,500 | K62: 3,500 | L62: 3,500 | M62: 3,500 | N62: 3,500
A63: 농정과 | B63: 개포면 송담길 142-24 | C63: =REPLACE(D63,2,1,"O") -> 남O호 | D63: 남기호 | E63: 친환경농법단지조성지원사업 (친환경농법 종합지원) | F63: 민간자본사업보조 | G63: 1,000천원 * 12ha * 50% | H63: 6,500 | I63: 12,000 | J63: 6,000 | K63: 6,000 | L63: 6,000 | M63: 6,000 | N63: 6,000
A64: 농정과 | B64: 개포면 종산골길 99 | C64: =REPLACE(D64,2,1,"O") -> 이O선 | D64: 이웅선 | E64: 친환경농법단지조성지원사업 (친환경농법 종합지원) | F64: 민간자본사업보조 | G64: 1,000천원 * 4ha * 50% | H64: 1,000 | I64: 4,000 | J64: 2,000 | K64: 2,000 | L64: 2,000 | M64: 2,000 | N64: 2,000
A65: 농정과 | B65: 지보면 어신2길 131 | C65: =REPLACE(D65,2,1,"O") -> 강O진 | D65: 강세진 | E65: 친환경농법단지조성지원사업 (친환경농법 종합지원) | F65: 민간자본사업보조 | G65: 1,000천원 * 4ha * 50% | H65: 2,000 | I65: 4,000 | J65: 2,000 | K65: 2,000 | L65: 2,000 | M65: 2,000 | N65: 2,000
A66: 농정과 | B66: 지보면 신풍1리길 61-7 | C66: =REPLACE(D66,2,1,"O") -> 윤O준 | D66: 윤성준 | E66: 친환경농법단지조성지원사업 (친환경농법 종합지원) | F66: 민간자본사업보조 | G66: 1,000천원 * 2ha * 50% | H66: 1,500 | I66: 2,000 | J66: 1,000 | K66: 1,000 | L66: 1,000 | M66: 1,000 | N66: 1,000
A67: 농정과 | B67: 지보면 신풍길 11 | C67: =REPLACE(D67,2,1,"O") -> 김O년 | D67: 김태년 | E67: 친환경농법단지조성지원사업 (친환경농법 종합지원) | F67: 민간자본사업보조 | G67: 1,000천원 * 24ha * 50% | H67: 11,500 | I67: 24,000 | J67: 12,000 | K67: 12,000 | L67: 12,000 | M67: 12,000 | N67: 12,000
A68: 농정과 | B68: 지보면 도화1길 32 | C68: =REPLACE(D68,2,1,"O") -> 최O순 | D68: 최명순 | E68: 친환경농법단지조성지원사업 (친환경농법 종합지원) | F68: 민간자본사업보조 | G68: 1,000천원 * 8ha * 50% | H68: 4,000 | I68: 8,000 | J68: 4,000 | K68: 4,000 | L68: 4,000 | M68: 4,000 | N68: 4,000
A69: 농정과 | B69: 풍양면 공덕길 141 | C69: =REPLACE(D69,2,1,"O") -> 김O원 | D69: 김병원 | E69: 친환경농법단지조성지원사업 (친환경농법 종합지원) | F69: 민간자본사업보조 | G69: 1,000천원 * 2ha * 50% | H69: 500 | I69: 2,000 | J69: 1,000 | K69: 1,000 | L69: 1,000 | M69: 1,000 | N69: 1,000
A70: 농정과 | B70: 예천읍 용산리 98 | C70: =REPLACE(D70,2,1,"O") -> 박O제 | D70: 박용제 | E70: 친환경농법단지조성지원사업 (친환경농법 종합지원) | F70: 민간자본사업보조 | G70: 300천원 * 13ha * 50% | H70: 1,200 | I70: 3,900 | J70: 1,950 | K70: 1,950 | L70: 1,950 | M70: 1,950 | N70: 1,950
A71: 농정과 | B71: 예천읍 상동리 85-1 | C71: =REPLACE(D71,2,1,"O") -> 권O수 | D71: 권만수 | E71: 친환경농법단지조성지원사업 (친환경농법 종합지원) | F71: 민간자본사업보조 | G71: 300천원 * 10ha * 50% | H71: 600 | I71: 3,000 | J71: 1,500 | K71: 1,500 | L71: 1,500 | M71: 1,500 | N71: 1,500
A72: 농정과 | B72: 예천읍 신리길 58-11 | C72: =REPLACE(D72,2,1,"O") -> 오O섭 | D72: 오윤섭 | E72: 친환경농법단지조성지원사업 (친환경농법 종합지원) | F72: 민간자본사업보조 | G72: 300천원 * 52ha * 50% | H72: 7,800 | I72: 15,600 | J72: 7,800 | K72: 7,800 | L72: 7,800 | M72: 7,800 | N72: 7,800
A73: 농정과 | B73: 예천읍 가수내길 16-3 | C73: =REPLACE(D73,2,1,"O") -> 박O경 | D73: 박찬경 | E73: 친환경농법단지조성지원사업 (친환경농법 종합지원) | F73: 민간자본사업보조 | G73: 300천원 * 26ha * 50% | H73: 3,300 | I73: 7,800 | J73: 3,900 | K73: 3,900 | L73: 3,900 | M73: 3,900 | N73: 3,900
A74: 농정과 | B74: 예천읍 왕신1리길 70 | C74: =REPLACE(D74,2,1,"O") -> 김O덕 | D74: 김재덕 | E74: 친환경농법단지조성지원사업 (친환경농법 종합지원) | F74: 민간자본사업보조 | G74: 300천원 * 79ha * 50% | H74: 11,700 | I74: 23,700 | J74: 11,850 | K74: 11,850 | L74: 11,850 | M74: 11,850 | N74: 11,850
A75: 농정과 | C75: =REPLACE(D75,2,1,"O") -> 최O원 | D75: 최성원 | E75: 친환경농법단지조성지원사업 (친환경농법 종합지원) | F75: 민간자본사업보조 | G75: 300천원 * 17ha * 50% | H75: 0 | I75: 5,100 | J75: 2,550 | K75: 2,550 | L75: 2,550 | M75: 2,550 | N75: 2,550
A76: 농정과 | B76: 감천면 덕율4길 29-10 | C76: =REPLACE(D76,2,1,"O") -> 권O준 | D76: 권오준 | E76: 친환경농법단지조성지원사업 (친환경농법 종합지원) | F76: 민간자본사업보조 | G76: 300천원 * 15ha * 50% | H76: 2,250 | I76: 4,500 | J76: 2,250 | K76: 2,250 | L76: 2,250 | M76: 2,250 | N76: 2,250
A77: 농정과 | B77: 감천면 석송로 349 | C77: =REPLACE(D77,2,1,"O") -> 김O덕 | D77: 김형덕 | E77: 친환경농법단지조성지원사업 (친환경농법 종합지원) | F77: 민간자본사업보조 | G77: 300천원 * 24ha * 50% | H77: 3,600 | I77: 7,200 | J77: 3,600 | K77: 3,600 | L77: 3,600 | M77: 3,600 | N77: 3,600
A78: 농정과 | B78: 감천면 도평길 48 | C78: =REPLACE(D78,2,1,"O") -> 김O년 | D78: 김홍년 | E78: 친환경농법단지조성지원사업 (친환경농법 종합지원) | F78: 민간자본사업보조 | G78: 300천원 * 20ha * 50% | H78: 2,400 | I78: 6,000 | J78: 3,000 | K78: 3,000 | L78: 3,000 | M78: 3,000 | N78: 3,000
A79: 농정과 | B79: 감천면 장산1길 32 | C79: =REPLACE(D79,2,1,"O") -> 김O동 | D79: 김주동 | E79: 친환경농법단지조성지원사업 (친환경농법 종합지원) | F79: 민간자본사업보조 | G79: 300천원 * 22ha * 50% | H79: 3,600 | I79: 6,600 | J79: 3,300 | K79: 3,300 | L79: 3,300 | M79: 3,300 | N79: 3,300
A80: 농정과 | B80: 감천면 마촌길 127-5 | C80: =REPLACE(D80,2,1,"O") -> 석O현 | D80: 석욱현 | E80: 친환경농법단지조성지원사업 (친환경농법 종합지원) | F80: 민간자본사업보조 | G80: 300천원 * 15ha * 50% | H80: 2,100 | I80: 4,500 | J80: 2,250 | K80: 2,250 | L80: 2,250 | M80: 2,250 | N80: 2,250
A81: 농정과 | B81: 보문면 웃노트기길 8 | C81: =REPLACE(D81,2,1,"O") -> 김O배 | D81: 김창배 | E81: 친환경농법단지조성지원사업 (친환경농법 종합지원) | F81: 민간자본사업보조 | G81: 300천원 * 29ha * 50% | H81: 0 | I81: 8,700 | J81: 4,350 | K81: 4,350 | L81: 4,350 | M81: 4,350 | N81: 4,350
A82: 농정과 | B82: 호명면 신촌길 13-1 | C82: =REPLACE(D82,2,1,"O") -> 임O형 | D82: 임상형 | E82: 친환경농법단지조성지원사업 (친환경농법 종합지원) | F82: 민간자본사업보조 | G82: 300천원 * 19ha * 50% | H82: 2,700 | I82: 5,700 | J82: 2,850 | K82: 2,850 | L82: 2,850 | M82: 2,850 | N82: 2,850
A83: 농정과 | B83: 호명면 갈음밭길 57-14 | C83: =REPLACE(D83,2,1,"O") -> 이O한 | D83: 이두한 | E83: 친환경농법단지조성지원사업 (친환경농법 종합지원) | F83: 민간자본사업보조 | G83: 300천원 * 32ha * 50% | H83: 4,800 | I83: 9,600 | J83: 4,800 | K83: 4,800 | L83: 4,800 | M83: 4,800 | N83: 4,800
A84: 농정과 | B84: 호명면 호명로 244 | C84: =REPLACE(D84,2,1,"O") -> 이O희 | D84: 이도희 | E84: 친환경농법단지조성지원사업 (친환경농법 종합지원) | F84: 민간자본사업보조 | G84: 300천원 * 20ha * 50% | H84: 0 | I84: 6,000 | J84: 3,000 | K84: 3,000 | L84: 3,000 | M84: 3,000 | N84: 3,000
A85: 농정과 | B85: 유천면 중평리 148-1 | C85: =REPLACE(D85,2,1,"O") -> 장O두 | D85: 장병두 | E85: 친환경농법단지조성지원사업 (친환경농법 종합지원) | F85: 민간자본사업보조 | G85: 300천원 * 23ha * 50% | H85: 3,300 | I85: 6,900 | J85: 3,450 | K85: 3,450 | L85: 3,450 | M85: 3,450 | N85: 3,450
A86: 농정과 | B86: 용궁면 월오길 44 | C86: =REPLACE(D86,2,1,"O") -> 안O훈 | D86: 안상훈 | E86: 친환경농법단지조성지원사업 (친환경농법 종합지원) | F86: 민간자본사업보조 | G86: 300천원 * 11ha * 50% | H86: 0 | I86: 3,300 | J86: 1,650 | K86: 1,650 | L86: 1,650 | M86: 1,650 | N86: 1,650
A87: 농정과 | B87: 용궁면 송암길 27-2 | C87: =REPLACE(D87,2,1,"O") -> 한O수 | D87: 한인수 | E87: 친환경농법단지조성지원사업 (친환경농법 종합지원) | F87: 민간자본사업보조 | G87: 300천원 * 31ha * 50% | H87: 0 | I87: 9,300 | J87: 4,650 | K87: 4,650 | L87: 4,650 | M87: 4,650 | N87: 4,650
A88: 농정과 | B88: 용궁면 경서로 1264 | C88: =REPLACE(D88,2,1,"O") -> 안O만 | D88: 안승만 | E88: 친환경농법단지조성지원사업 (친환경농법 종합지원) | F88: 민간자본사업보조 | G88: 300천원 * 18ha * 50% | H88: 900 | I88: 5,400 | J88: 2,700 | K88: 2,700 | L88: 2,700 | M88: 2,700 | N88: 2,700
A89: 농정과 | B89: 용궁면 대은길 41-1 | C89: =REPLACE(D89,2,1,"O") -> 윤O락 | D89: 윤창락 | E89: 친환경농법단지조성지원사업 (친환경농법 종합지원) | F89: 민간자본사업보조 | G89: 300천원 * 9ha * 50% | H89: 0 | I89: 2,700 | J89: 1,350 | K89: 1,350 | L89: 1,350 | M89: 1,350 | N89: 1,350
A90: 농정과 | B90: 용궁면 회룡길 175 | C90: =REPLACE(D90,2,1,"O") -> 조O중 | D90: 조현중 | E90: 친환경농법단지조성지원사업 (친환경농법 종합지원) | F90: 민간자본사업보조 | G90: 300천원 * 8ha * 50% | H90: 0 | I90: 2,400 | J90: 1,200 | K90: 1,200 | L90: 1,200 | M90: 1,200 | N90: 1,200
A91: 농정과 | B91: 용궁면 산택길 22-1 | C91: =REPLACE(D91,2,1,"O") -> 구O룡 | D91: 구태룡 | E91: 친환경농법단지조성지원사업 (친환경농법 종합지원) | F91: 민간자본사업보조 | G91: 300천원 * 39ha * 50% | H91: 0 | I91: 11,700 | J91: 5,850 | K91: 5,850 | L91: 5,850 | M91: 5,850 | N91: 5,850
A92: 농정과 | B92: 용궁면 향석길 29-1 | C92: =REPLACE(D92,2,1,"O") -> 박O식 | D92: 박원식 | E92: 친환경농법단지조성지원사업 (친환경농법 종합지원) | F92: 민간자본사업보조 | G92: 300천원 * 21ha * 50% | H92: 3,750 | I92: 6,300 | J92: 3,150 | K92: 3,150 | L92: 3,150 | M92: 3,150 | N92: 3,150
A93: 농정과 | B93: 용궁면 용궁로 137-2 | C93: =REPLACE(D93,2,1,"O") -> 윤O덕 | D93: 윤경덕 | E93: 친환경농법단지조성지원사업 (친환경농법 종합지원) | F93: 민간자본사업보조 | G93: 300천원 * 73ha * 50% | H93: 7,050 | I93: 21,900 | J93: 10,950 | K93: 10,950 | L93: 10,950 | M93: 10,950 | N93: 10,950
A94: 농정과 | B94: 용궁면 무이서당길 119 | C94: =REPLACE(D94,2,1,"O") -> 이O무 | D94: 이연무 | E94: 친환경농법단지조성지원사업 (친환경농법 종합지원) | F94: 민간자본사업보조 | G94: 300천원 * 18ha * 50% | H94: 1,650 | I94: 5,400 | J94: 2,700 | K94: 2,700 | L94: 2,700 | M94: 2,700 | N94: 2,700
A95: 농정과 | B95: 용궁면 덕계1길 132 | C95: =REPLACE(D95,2,1,"O") -> 도O환 | D95: 도철환 | E95: 친환경농법단지조성지원사업 (친환경농법 종합지원) | F95: 민간자본사업보조 | G95: 300천원 * 24ha * 50% | H95: 0 | I95: 7,200 | J95: 3,600 | K95: 3,600 | L95: 3,600 | M95: 3,600 | N95: 3,600
A96: 농정과 | B96: 개포면 송담길 142-24 | C96: =REPLACE(D96,2,1,"O") -> 남O호 | D96: 남기호 | E96: 친환경농법단지조성지원사업 (친환경농법 종합지원) | F96: 민간자본사업보조 | G96: 300천원 * 15ha * 50% | H96: 1,950 | I96: 4,500 | J96: 2,250 | K96: 2,250 | L96: 2,250 | M96: 2,250 | N96: 2,250
A97: 농정과 | B97: 개포면 종산골길 99 | C97: =REPLACE(D97,2,1,"O") -> 이O선 | D97: 이웅선 | E97: 친환경농법단지조성지원사업 (친환경농법 종합지원) | F97: 민간자본사업보조 | G97: 300천원 * 1ha * 50% | H97: 150 | I97: 300 | J97: 150 | K97: 150 | L97: 150 | M97: 150 | N97: 150
A98: 농정과 | B98: 개포면 용개로 1263-9 | C98: =REPLACE(D98,2,1,"O") -> 신O환 | D98: 신병환 | E98: 친환경농법단지조성지원사업 (친환경농법 종합지원) | F98: 민간자본사업보조 | G98: 300천원 * 27ha * 50% | H98: 2,700 | I98: 8,100 | J98: 4,050 | K98: 4,050 | L98: 4,050 | M98: 4,050 | N98: 4,050
A99: 농정과 | B99: 개포면 봉산길 24 | C99: =REPLACE(D99,2,1,"O") -> 고O환 | D99: 고승환 | E99: 친환경농법단지조성지원사업 (친환경농법 종합지원) | F99: 민간자본사업보조 | G99: 300천원 * 15ha * 50% | H99: 2,550 | I99: 4,500 | J99: 2,250 | K99: 2,250 | L99: 2,250 | M99: 2,250 | N99: 2,250
A100: 농정과 | B100: 개포면 우감리 573-1 | C100: =REPLACE(D100,2,1,"O") -> 윤O영 | D100: 윤태영 | E100: 친환경농법단지조성지원사업 (친환경농법 종합지원) | F100: 민간자본사업보조 | G100: 300천원 * 55ha * 50% | H100: 7,350 | I100: 16,500 | J100: 8,250 | K100: 8,250 | L100: 8,250 | M100: 8,250 | N100: 8,250
A101: 농정과 | B101: 지보면 어신2길 131 | C101: =REPLACE(D101,2,1,"O") -> 강O진 | D101: 강세진 | E101: 친환경농법단지조성지원사업 (친환경농법 종합지원) | F101: 민간자본사업보조 | G101: 300천원 * 15ha * 50% | H101: 2,250 | I101: 4,500 | J101: 2,250 | K101: 2,250 | L101: 2,250 | M101: 2,250 | N101: 2,250
A102: 농정과 | B102: 지보면 신풍1리길 61-7 | C102: =REPLACE(D102,2,1,"O") -> 윤O준 | D102: 윤성준 | E102: 친환경농법단지조성지원사업 (친환경농법 종합지원) | F102: 민간자본사업보조 | G102: 300천원 * 24ha * 50% | H102: 2,550 | I102: 7,200 | J102: 3,600 | K102: 3,600 | L102: 3,600 | M102: 3,600 | N102: 3,600
A103: 농정과 | B103: 지보면 신풍길 11 | C103: =REPLACE(D103,2,1,"O") -> 김O년 | D103: 김태년 | E103: 친환경농법단지조성지원사업 (친환경농법 종합지원) | F103: 민간자본사업보조 | G103: 300천원 * 101ha * 50% | H103: 15,150 | I103: 30,300 | J103: 15,150 | K103: 15,150 | L103: 15,150 | M103: 15,150 | N103: 15,150
A104: 농정과 | B104: 지보면 도화1길 32 | C104: =REPLACE(D104,2,1,"O") -> 최O순 | D104: 최명순 | E104: 친환경농법단지조성지원사업 (친환경농법 종합지원) | F104: 민간자본사업보조 | G104: 300천원 * 198ha * 50% | H104: 27,150 | I104: 59,400 | J104: 29,700 | K104: 29,700 | L104: 29,700 | M104: 29,700 | N104: 29,700
A105: 농정과 | B105: 풍양면 공덕길 141 | C105: =REPLACE(D105,2,1,"O") -> 김O원 | D105: 김병원 | E105: 친환경농법단지조성지원사업 (친환경농법 종합지원) | F105: 민간자본사업보조 | G105: 300천원 * 8ha * 50% | H105: 1,200 | I105: 2,400 | J105: 1,200 | K105: 1,200 | L105: 1,200 | M105: 1,200 | N105: 1,200
A106: 농정과 | B106: 효자면 용소마길 46 | C106: =REPLACE(D106,2,1,"O") -> 김O옥 | D106: 김순옥 | E106: 과수생력화기자재지원 (과수전동가위) | F106: 민간자본사업보조 | G106: 1대 * 1,600천원 * 50% | I106: 1,600 | J106: 800 | K106: 800 | L106: 800 | M106: 800 | N106: 800
A107: 농정과 | B107: 효자면 보리밭길 13 | C107: =REPLACE(D107,2,1,"O") -> 박O성 | D107: 박재성 | E107: 과수생력화기자재지원 (과수전동가위) | F107: 민간자본사업보조 | G107: 1대 * 1,600천원 * 50% | I107: 1,600 | J107: 800 | K107: 800 | L107: 800 | M107: 800 | N107: 800
A108: 농정과 | B108: 예천읍 양궁로 6, 708호(명성남본아파트) | C108: =REPLACE(D108,2,1,"O") -> 김O호 | D108: 김석호 | E108: 과수생력화기자재지원 (과수전동가위) | F108: 민간자본사업보조 | G108: 1대 * 1,600천원 * 50% | I108: 1,600 | J108: 800 | K108: 800 | L108: 800 | M108: 800 | N108: 800
A109: 농정과 | B109: 유천면 용암길 50 | C109: =REPLACE(D109,2,1,"O") -> 엄O용 | D109: 엄창용 | E109: 과수생력화기자재지원 (과수전동가위) | F109: 민간자본사업보조 | G109: 1대 * 1,600천원 * 50% | I109: 1,600 | J109: 800 | K109: 800 | L109: 800 | M109: 800 | N109: 800
A110: 농정과 | B110: 예천읍 한천길 39 | C110: =REPLACE(D110,2,1,"O") -> 박O국 | D110: 박병국 | E110: 소득작목육성지원사업(스프링쿨러) | F110: 민간자본사업보조 | G110: 1,560천원 * 1식 * 50% | I110: 1,560 | J110: 780 | K110: 780 | L110: 780 | M110: 780 | N110: 780
A111: 농정과 | B111: 예천읍 동읍내길 18-2 | C111: =REPLACE(D111,2,1,"O") -> 우O수 | D111: 우윤수 | E111: 소득작목육성지원사업(스프링쿨러) | F111: 민간자본사업보조 | G111: 4,000천원 * 1식 * 50% | I111: 4,000 | J111: 2,000 | K111: 2,000 | L111: 2,000 | M111: 2,000 | N111: 2,000
A112: 농정과 | B112: 예천읍 용산길 59-1 | C112: =REPLACE(D112,2,1,"O") -> 박O하 | D112: 박영하 | E112: 원예산업육성지원사업(스프링쿨러) | F112: 민간자본사업보조 | G112: 1,500천원 * 1식 * 50% | I112: 1,500 | J112: 750 | K112: 750 | L112: 750 | M112: 750 | N112: 750
A113: 농정과 | B113: 호명면 형호길 115 | C113: =REPLACE(D113,2,1,"O") -> 신O용 | D113: 신흥용 | E113: 소득작목육성지원사업(스프링쿨러) | F113: 민간자본사업보조 | G113: 4,000천원 * 1식 * 50% | I113: 4,000 | J113: 2,000 | K113: 2,000 | L113: 2,000 | M113: 2,000 | N113: 2,000
A114: 농정과 | B114: 감천면 수한길 141-117 | C114: =REPLACE(D114,2,1,"O") -> 김O직 | D114: 김홍직 | E114: 소득작목육성지원사업(스프링쿨러) | F114: 민간자본사업보조 | G114: 2,000천원 * 1식 * 50% | I114: 2,000 | J114: 1,000 | K114: 1,000 | L114: 1,000 | M114: 1,000 | N114: 1,000
A115: 농정과 | B115: 예천읍 왕신1리길 57 | C115: =REPLACE(D115,2,1,"O") -> 김O혁 | D115: 김재혁 | E115: 원예산업육성지원사업 (이동식저온저장고) | F115: 민간자본사업보조 | G115: 600천원 * 10㎡ * 50% | I115: 6,000 | J115: 3,000 | K115: 3,000 | L115: 3,000 | M115: 3,000 | N115: 3,000
A116: 농정과 | B116: 은풍면 어림성길 240 | C116: =REPLACE(D116,2,1,"O") -> 권O섭 | D116: 권대섭 | E116: 원예산업육성지원사업 (이동식저온저장고) | F116: 민간자본사업보조 | G116: 600천원 * 10㎡ * 50% | I116: 6,000 | J116: 3,000 | K116: 3,000 | L116: 3,000 | M116: 3,000 | N116: 3,000
A117: 농정과 | B117: 풍양면 고천길 94 | C117: =REPLACE(D117,2,1,"O") -> 최O열 | D117: 최대열 | E117: 원예산업육성지원사업 (이동식저온저장고) | F117: 민간자본사업보조 | G117: 600천원 * 10㎡ * 50% | I117: 6,000 | J117: 3,000 | K117: 3,000 | L117: 3,000 | M117: 3,000 | N117: 3,000
A118: 농정과 | B118: 예천읍 용산길 244-1 | C118: =REPLACE(D118,2,1,"O") -> 이O순 | D118: 이금순 | E118: 원예산업육성지원사업(관수시설) | F118: 민간자본사업보조 | G118: 600천원 * 2식 * 50% | I118: 1,200 | J118: 600 | K118: 600 | L118: 600 | M118: 600 | N118: 600
A119: 농정과 | B119: 예천읍 용산길 59-1 | C119: =REPLACE(D119,2,1,"O") -> 박O하 | D119: 박영하 | E119: 원예산업육성지원사업(관수시설) | F119: 민간자본사업보조 | G119: 600천원 * 2식 * 50% | I119: 1,200 | J119: 600 | K119: 600 | L119: 600 | M119: 600 | N119: 600
A120: 농정과 | B120: 효자면 도촌길 17-19 | C120: =REPLACE(D120,2,1,"O") -> 박O환 | D120: 박재환 | E120: 원예산업육성지원사업(관수시설) | F120: 민간자본사업보조 | G120: 600천원 * 2식 * 50% | I120: 1,200 | J120: 600 | K120: 600 | L120: 600 | M120: 600 | N120: 600
A121: 농정과 | B121: 은풍면 은풍준시길 48 | C121: =REPLACE(D121,2,1,"O") -> 김O규 | D121: 김봉규 | E121: 원예산업육성지원사업(관수시설) | F121: 민간자본사업보조 | G121: 600천원 * 2식 * 50% | I121: 1,200 | J121: 600 | K121: 600 | L121: 600 | M121: 600 | N121: 600
A122: 농정과 | B122: 유천면 화지1길 49-5 | C122: =REPLACE(D122,2,1,"O") -> 윤O우 | D122: 윤철우 | E122: 원예산업육성지원사업(관수시설) | F122: 민간자본사업보조 | G122: 600천원 * 1식 * 50% | I122: 600 | J122: 300 | K122: 300 | L122: 300 | M122: 300 | N122: 300
A123: 농정과 | B123: 보문면 무근열길 62 | C123: =REPLACE(D123,2,1,"O") -> 이O직 | D123: 이교직 | E123: 원예산업육성지원사업(관수시설) | F123: 민간자본사업보조 | G123: 600천원 * 1식 * 50% | I123: 600 | J123: 300 | K123: 300 | L123: 300 | M123: 300 | N123: 300
A124: 농정과 | B124: 감천면 덕율4길 29-18 | C124: =REPLACE(D124,2,1,"O") -> 최O희 | D124: 최종희 | E124: 원예산업육성지원사업(관수시설) | F124: 민간자본사업보조 | G124: 600천원 * 1식 * 50% | I124: 600 | J124: 300 | K124: 300 | L124: 300 | M124: 300 | N124: 300
A125: 농정과 | B125: 은풍면 조고리길 117 | C125: =REPLACE(D125,2,1,"O") -> 박O서 | D125: 박효서 | E125: 우수 농특산물 포장재 개선지원 | F125: 민간자본보조사업 | G125: 1,500원 * 2,000매 * 50% | I125: 3,000 | J125: 1,500 | K125: 1,500 | L125: 1,500 | M125: 1,500 | N125: 1,500
A126: 농정과 | B126: 효자면 새별길 27-3 | C126: =REPLACE(D126,2,1,"O") -> 전O한 | D126: 전석한 | E126: 우수 농특산물 포장재 개선지원 | F126: 민간자본보조사업 | G126: 1,500원 * 2,000매 * 50% | I126: 3,000 | J126: 1,500 | K126: 1,500 | L126: 1,500 | M126: 1,500 | N126: 1,500
A127: 농정과 | B127: 은풍면 부용봉길 120-24 | C127: =REPLACE(D127,2,1,"O") -> 이O락 | D127: 이복락 | E127: 우수 농특산물 포장재 개선지원 | F127: 민간자본보조사업 | G127: 2,000원 * 2,000매 * 50% | I127: 4,000 | J127: 2,000 | K127: 2,000 | L127: 2,000 | M127: 2,000 | N127: 2,000
A128: 농정과 | B128: 은풍면 부용봉길 446-6 | C128: =REPLACE(D128,2,1,"O") -> 김O한 | D128: 김욱한 | E128: 우수 농특산물 포장재 개선지원 | F128: 민간자본보조사업 | G128: 1,500원 * 2,000매 * 50% | I128: 3,000 | J128: 1,500 | K128: 1,500 | L128: 1,500 | M128: 1,500 | N128: 1,500
A129: 농정과 | B129: 보문면 산성길 759-42 | C129: =REPLACE(D129,2,1,"O") -> 안O기 | D129: 안준기 | E129: 우수 농특산물 포장재 개선지원 | F129: 민간자본보조사업 | G129: 1,500원 * 4,000매 * 50% | I129: 6,000 | J129: 3,000 | K129: 3,000 | L129: 3,000 | M129: 3,000 | N129: 3,000
A130: 농정과 | B130: 감천면 수한길 109-130 | C130: =REPLACE(D130,2,1,"O") -> 박O석 | D130: 박기석 | E130: 우수 농특산물 포장재 개선지원 | F130: 민간자본보조사업 | G130: 1,500원 * 2,000매 * 50% | I130: 3,000 | J130: 1,500 | K130: 1,500 | L130: 1,500 | M130: 1,500 | N130: 1,500
A131: 농정과 | B131: 은풍면 은풍로 267-20 | C131: =REPLACE(D131,2,1,"O") -> 김O미 | D131: 김수미 | E131: 우수 농특산물 포장재 개선지원 | F131: 민간자본보조사업 | G131: 1,500원 * 4,000매 * 50% | I131: 6,000 | J131: 3,000 | K131: 3,000 | L131: 3,000 | M131: 3,000 | N131: 3,000
A132: 농정과 | B132: 은풍면 어림성길 240 | C132: =REPLACE(D132,2,1,"O") -> 권O섭 | D132: 권대섭 | E132: 우수 농특산물 포장재 개선지원 | F132: 민간자본보조사업 | G132: 1,500원 * 4,000매 * 50% | I132: 6,000 | J132: 3,000 | K132: 3,000 | L132: 3,000 | M132: 3,000 | N132: 3,000
A133: 농정과 | B133: 지보면 어신1길 102-8 | C133: =REPLACE(D133,2,1,"O") -> 김O현 | D133: 김진현 | E133: 우수 농특산물 포장재 개선지원 | F133: 민간자본보조사업 | G133: 1천원 * 10,000매 * 50% | I133: 10,000 | J133: 5,000 | K133: 5,000 | L133: 5,000 | M133: 5,000 | N133: 5,000
A134: 농정과 | B134: 용문면 금당실길 68 | C134: =REPLACE(D134,2,1,"O") -> 신O민 | D134: 신현민 | E134: 우수 농특산물 포장재 개선지원 | F134: 민간자본보조사업 | G134: 2천원 * 3,000매 * 50% | I134: 6,000 | J134: 3,000 | K134: 3,000 | L134: 3,000 | M134: 3,000 | N134: 3,000
A135: 농정과 | B135: 예천읍 시장로 83-1 | C135: =REPLACE(D135,2,1,"O") -> 장O관 | D135: 장미관 | E135: 우수 농특산물 포장재 개선지원 | F135: 민간자본보조사업 | G135: 5천원 * 1,600매 * 50% | I135: 8,000 | J135: 4,000 | K135: 4,000 | L135: 4,000 | M135: 4,000 | N135: 4,000
A136: 농정과 | B136: 호명면 새움3로 16 | C136: =REPLACE(D136,2,1,"O") -> 박O석 | D136: 박재석 | E136: 우수 농특산물 포장재 개선지원 | F136: 민간자본보조사업 | G136: 5천원 * 1,600매 * 50% | I136: 8,000 | J136: 4,000 | K136: 4,000 | L136: 4,000 | M136: 4,000 | N136: 4,000
A137: 농정과 | B137: 지보면 지보로 255 | C137: =REPLACE(D137,2,1,"O") -> 지O참우마을 영농조합법인 (대표: 조재춘) | D137: 지보참우마을 영농조합법인 (대표: 조재춘) | E137: 우수 농특산물 포장재 개선지원 | F137: 민간자본보조사업 | G137: 5천원 * 1,600매 * 50% | I137: 8,000 | J137: 4,000 | K137: 4,000 | L137: 4,000 | M137: 4,000 | N137: 4,000
A138: 농정과 | B138: 지보면 대죽길 117 | C138: =REPLACE(D138,2,1,"O") -> 김O구 | D138: 김휘구 | E138: 우수 농특산물 포장재 개선지원 | F138: 민간자본보조사업 | G138: 20천원 * 1,000매 * 50% | I138: 20,000 | J138: 10,000 | K138: 10,000 | L138: 10,000 | M138: 10,000 | N138: 10,000
A139: 농정과 | B139: 용문면 상금시장길 1-1 | C139: =REPLACE(D139,2,1,"O") -> 장O선 | D139: 장애선 | E139: 우수 농특산물 포장재 개선지원 | F139: 민간자본보조사업 | G139: 5천원 * 1,600매 * 50% | I139: 8,000 | J139: 4,000 | K139: 4,000 | L139: 4,000 | M139: 4,000 | N139: 4,000
A140: 농정과 | B140: 보문면 무근열길 173 | C140: =REPLACE(D140,2,1,"O") -> 김O중 | D140: 김일중 | E140: 밭작물 폭염(가뭄)피해 예방사업 | F140: 민간자본사업보조 | G140: 600천원 * 1식 * 70% | H140: 0 | I140: 600 | J140: 420 | K140: 180 | L140: 420 | M140: 420 | N140: 420
A141: 농정과 | B141: 은풍면 은풍준시길 64-3 | C141: =REPLACE(D141,2,1,"O") -> 김O현 | D141: 김상현 | E141: 밭작물 폭염(가뭄)피해 예방사업 | F141: 민간자본사업보조 | G141: 600천원 * 1식 * 70% | H141: 0 | I141: 600 | J141: 420 | K141: 180 | L141: 420 | M141: 420 | N141: 420
A142: 농정과 | B142: 은풍면 은산길 65 | C142: =REPLACE(D142,2,1,"O") -> 이O하 | D142: 이상하 | E142: 밭작물 폭염(가뭄)피해 예방사업 | F142: 민간자본사업보조 | G142: 600천원 * 1식 * 70% | H142: 0 | I142: 600 | J142: 420 | K142: 180 | L142: 420 | M142: 420 | N142: 420
A143: 농정과 | B143: 은풍면 은풍준시길 28-72 | C143: =REPLACE(D143,2,1,"O") -> 장O기 | D143: 장덕기 | E143: 밭작물 폭염(가뭄)피해 예방사업 | F143: 민간자본사업보조 | G143: 600천원 * 1식 * 70% | H143: 0 | I143: 600 | J143: 420 | K143: 180 | L143: 420 | M143: 420 | N143: 420
A144: 농정과 | B144: 효자면 은풍로 1065 | C144: =REPLACE(D144,2,1,"O") -> 박O철 | D144: 박승철 | E144: 밭작물 폭염(가뭄)피해 예방사업 | F144: 민간자본사업보조 | G144: 600천원 * 1식 * 70% | H144: 0 | I144: 600 | J144: 420 | K144: 180 | L144: 420 | M144: 420 | N144: 420
A145: 농정과 | B145: 호명면 봉호로 4184-35 | C145: =REPLACE(D145,2,1,"O") -> 박O범 | D145: 박현범 | E145: 밭작물 폭염(가뭄)피해 예방사업 | F145: 민간자본사업보조 | G145: 1,200천원 * 1식 * 70% | H145: 0 | I145: 1,200 | J145: 840 | K145: 360 | L145: 840 | M145: 840 | N145: 840
A146: 농정과 | B146: 예천읍 통명길 41-16 | C146: =REPLACE(D146,2,1,"O") -> 윤O한 | D146: 윤준한 | E146: 밭작물 폭염(가뭄)피해 예방사업 | F146: 민간자본사업보조 | G146: 1,200천원 * 1식 * 70% | H146: 0 | I146: 600 | J146: 420 | K146: 180 | L146: 420 | M146: 420 | N146: 420
A147: 농정과 | B147: 지보면 지보리길 202 | C147: =REPLACE(D147,2,1,"O") -> 어O호 | D147: 어광호 | E147: 밭작물 폭염(가뭄)피해 예방사업 | F147: 민간자본사업보조 | G147: 1,200천원 * 1식 * 70% | H147: 0 | I147: 600 | J147: 420 | K147: 180 | L147: 420 | M147: 420 | N147: 420
A148: 농정과 | B148: 감천면 수한1길 141-117 | C148: =REPLACE(D148,2,1,"O") -> 김O직(수한율무단지) | D148: 김홍직(수한율무단지) | E148: 토종곡물 재배단지 지원 | F148: 민간자본사업보조 | G148: 1,000천원 * 3ha * 70% | I148: 3,000 | J148: 2,100 | K148: 900 | L148: 2,100 | M148: 2,100 | N148: 2,100
A149: 농정과 | B149: 유천면 수심1길 95 | C149: =REPLACE(D149,2,1,"O") -> 김O봉(예천버드내잡곡) | D149: 김상봉(예천버드내잡곡) | E149: 토종곡물 재배단지 지원 | F149: 민간자본사업보조 | G149: 1,000천원 * 7ha * 70% | H149: 10,000 | I149: 7,000 | J149: 4,900 | K149: 2,100 | L149: 4,900 | M149: 4,900 | N149: 4,900
A150: 농정과 | B150: 용궁면 용궁로 137-2 | C150: =REPLACE(D150,2,1,"O") -> 윤O덕(용궁무이단지) | D150: 윤경덕(용궁무이단지) | E150: 토종곡물 재배단지 지원 | F150: 민간자본사업보조 | G150: 1,000천원 * 3ha * 70% | H150: 5,000 | I150: 3,000 | J150: 2,100 | K150: 900 | L150: 2,100 | M150: 2,100 | N150: 2,100
A151: 농정과 | B151: 용궁면 경서로 1264 | C151: =REPLACE(D151,2,1,"O") -> 안O만(용궁무지단지) | D151: 안승만(용궁무지단지) | E151: 토종곡물 재배단지 지원 | F151: 민간자본사업보조 | G151: 1,000천원 * 3ha * 70% | H151: 3,000 | I151: 3,000 | J151: 2,100 | K151: 900 | L151: 2,100 | M151: 2,100 | N151: 2,100
A152: 농정과 | B152: 감천면 수한1길 141-117 | C152: =REPLACE(D152,2,1,"O") -> 김O직(수한율무단지) | D152: 김홍직(수한율무단지) | E152: 콩,맥류,토종곡물 재배단지 장비 지원 | F152: 민간자본사업보조 | G152: 9,800천원 * 1식 * 70% | H152: 4,000 | I152: 9,800 | J152: 6,860 | K152: 2,940 | L152: 6,860 | M152: 6,860 | N152: 6,860
A153: 농정과 | B153: 용궁면 용궁로 137-2 | C153: =REPLACE(D153,2,1,"O") -> 윤O덕(용궁무이단지) | D153: 윤경덕(용궁무이단지) | E153: 콩,맥류,토종곡물 재배단지 장비 지원 | F153: 민간자본사업보조 | G153: 9,300천원 * 1식 * 70% | H153: 5,000 | I153: 9,300 | J153: 6,510 | K153: 2,790 | L153: 6,510 | M153: 6,510 | N153: 6,510
A154: 농정과 | B154: 용궁면 경서로 1264 | C154: =REPLACE(D154,2,1,"O") -> 안O만(용궁무지단지) | D154: 안승만(용궁무지단지) | E154: 콩,맥류,토종곡물 재배단지 장비 지원 | F154: 민간자본사업보조 | G154: 18,600천원 * 1식 * 70% | H154: 3,000 | I154: 18,600 | J154: 13,020 | K154: 5,580 | L154: 13,020 | M154: 13,020 | N154: 13,020
A155: 농정과 | B155: 호명면 한어길 284 | C155: =REPLACE(D155,2,1,"O") -> 박O화 | D155: 박영화 | E155: 벼 육묘공장(소형) 설치 지원사업 | F155: 민간자본사업보조 | G155: 42,000천원 * 1식 * 50% | H155: 0 | I155: 42,000 | J155: 21,000 | K155: 21,000 | L155: 21,000 | M155: 21,000 | N155: 21,000
A156: 농정과 | B156: 풍양면 괴당1길 315-23 | C156: =REPLACE(D156,2,1,"O") -> 이O선 | D156: 이학선 | E156: 벼 육묘공장(소형) 설치 지원사업 | F156: 민간자본사업보조 | G156: 42,000천원 * 1식 * 50% | H156: 0 | I156: 42,000 | J156: 21,000 | K156: 21,000 | L156: 21,000 | M156: 21,000 | N156: 21,000
A157: 농정과 | B157: 은풍면 부용봉길 129-13 | C157: =REPLACE(D157,2,1,"O") -> 남O건 | D157: 남병건 | E157: 공공비축미 매입용 톤백저울 지원사업 | F157: 민간자본사업보조 | G157: 1,000천원 * 1식 * 50% | I157: 1,000 | J157: 500 | K157: 500 | L157: 500 | M157: 500 | N157: 500
A158: 농정과 | B158: 감천면 유동길 169-14 | C158: =REPLACE(D158,2,1,"O") -> 김O기 | D158: 김덕기 | E158: 공공비축미 매입용 톤백저울 지원사업 | F158: 민간자본사업보조 | G158: 1,000천원 * 1식 * 50% | I158: 1,000 | J158: 500 | K158: 500 | L158: 500 | M158: 500 | N158: 500
A159: 농정과 | B159: 호명면 인포길 52-11 | C159: =REPLACE(D159,2,1,"O") -> 우O윤 | D159: 우용윤 | E159: 공공비축미 매입용 톤백저울 지원사업 | F159: 민간자본사업보조 | G159: 1,000천원 * 1식 * 50% | I159: 1,000 | J159: 500 | K159: 500 | L159: 500 | M159: 500 | N159: 500
A160: 농정과 | B160: 풍양면 풍덕길 143-10 | C160: =REPLACE(D160,2,1,"O") -> 양O선 | D160: 양태선 | E160: 공공비축미 매입용 톤백저울 지원사업 | F160: 민간자본사업보조 | G160: 1,000천원 * 1식 * 50% | I160: 1,000 | J160: 500 | K160: 500 | L160: 500 | M160: 500 | N160: 500
A161: 농정과 | B161: 풍양면 신흥길 148 | C161: =REPLACE(D161,2,1,"O") -> 기O월 | D161: 기영월 | E161: 공공비축미 매입용 톤백저울 지원사업 | F161: 민간자본사업보조 | G161: 1,000천원 * 1식 * 50% | I161: 1,000 | J161: 500 | K161: 500 | L161: 500 | M161: 500 | N161: 500
A162: 소계 | E162: =SUBTOTAL(103,E163:E705) -> 543 | H162: =SUBTOTAL(9,H163:H705) -> 0 | I162: 476,150 | J162: 239,372 | K162: 236,778 | L162: 239,372 | M162: 239,372 | N162: 239,372
A163: 산림축산과 | B163: 은풍면 부용봉길 19 | C163: =REPLACE(D163,2,1,"O") -> 권O혁 | D163: 권기혁 | E163: 임산물 생산기반조성사업 | F163: 민간자본사업보조 | G163: 15,000천원 * 1식 * 40% | H163: 0 | I163: =J163+K163 -> 15,000 | J163: 6,000 | K163: 9,000 | L163: 6,000 | M163: 6,000 | N163: 6,000
A164: 산림축산과 | B164: 은풍면 은풍준시길 55-5 | C164: =REPLACE(D164,2,1,"O") -> 임O혁 | D164: 임광혁 | E164: 임산물 생산기반조성사업 | F164: 민간자본사업보조 | G164: 20,000천원 * 1식 * 40% | H164: 0 | I164: =J164+K164 -> 20,000 | J164: 8,000 | K164: 12,000 | L164: 8,000 | M164: 8,000 | N164: 8,000
A165: 산림축산과 | B165: 예천읍 대심3길 28-5 | C165: =REPLACE(D165,2,1,"O") -> 박O순 | D165: 박화순 | E165: 임산물 유통기반조성(가공장비) | F165: 민간자본사업보조 | G165: 6,000천원 * 1식 * 40% | H165: 0 | I165: 6,000 | J165: 2,400 | K165: 3,600 | L165: 2,400 | M165: 2,400 | N165: 2,400
A166: 산림축산과 | B166: 은풍면 부용봉길 237-18 | C166: =REPLACE(D166,2,1,"O") -> 임O식 | D166: 임운식 | E166: 임산물 유통기반조성(가공장비) | F166: 민간자본사업보조 | G166: 8,420천원 * 1식 * 40% | H166: 0 | I166: 8,420 | J166: 3,368 | K166: 5,052 | L166: 3,368 | M166: 3,368 | N166: 3,368
A167: 산림축산과 | B167: 호명면 인포길 54 | C167: =REPLACE(D167,2,1,"O") -> 우O윤 | D167: 우상윤 | E167: 임산물 유통기반조성(가공장비) | F167: 민간자본사업보조 | G167: 8,000천원 * 1식 * 40% | H167: 0 | I167: 8,000 | J167: 3,200 | K167: 4,800 | L167: 3,200 | M167: 3,200 | N167: 3,200
A168: 산림축산과 | B168: 풍양면 괴당1길 337-9 | C168: =REPLACE(D168,2,1,"O") -> 최O을 | D168: 최병을 | E168: 임산물 유통기반조성(가공장비) | F168: 민간자본사업보조 | G168: 4,500천원 * 1식 * 40% | H168: 0 | I168: 4,500 | J168: 1,800 | K168: 2,700 | L168: 1,800 | M168: 1,800 | N168: 1,800
A169: 산림축산과 | B169: 은풍면 조고리길 123 | C169: =REPLACE(D169,2,1,"O") -> 남O덕 | D169: 남주덕 | E169: 임산물 유통기반조성(저장건조시설) | F169: 민간자본사업보조 | G169: 6,600천원 * 1식 * 40% | H169: 0 | I169: 6,600 | J169: 2,640 | K169: 3,960 | L169: 2,640 | M169: 2,640 | N169: 2,640
A170: 산림축산과 | B170: 호명면 번개길 136-35 | C170: =REPLACE(D170,2,1,"O") -> 신O달 | D170: 신상달 | E170: 임산물 유통기반조성(저장건조시설) | F170: 민간자본사업보조 | G170: 6,000천원 * 1식 * 40% | H170: 0 | I170: 6,000 | J170: 2,400 | K170: 3,600 | L170: 2,400 | M170: 2,400 | N170: 2,400
A171: 산림축산과 | B171: 풍양면 상풍로 1355-5 | C171: =REPLACE(D171,2,1,"O") -> 김O복 | D171: 김영복 | E171: 임산물 유통기반조성(저장건조시설) | F171: 민간자본사업보조 | G171: 8,000천원 * 1식 * 40% | H171: 0 | I171: 8,000 | J171: 3,200 | K171: 4,800 | L171: 3,200 | M171: 3,200 | N171: 3,200
A172: 산림축산과 | B172: 풍양면 청운1리길 50-5 | C172: =REPLACE(D172,2,1,"O") -> 윤O현 | D172: 윤국현 | E172: 임산물 유통기반조성(저장건조시설) | F172: 민간자본사업보조 | G172: 12,000천원 * 1식 * 40% | H172: 0 | I172: 12,000 | J172: 4,800 | K172: 7,200 | L172: 4,800 | M172: 4,800 | N172: 4,800
A173: 산림축산과 | B173: 은풍면 은풍준시길 44-10 | C173: =REPLACE(D173,2,1,"O") -> 최O만 | D173: 최정만 | E173: 산림작물생산단지조성(소액) | F173: 민간자본사업보조 | G173: 9,400천원 * 1식 * 40% | H173: 0 | I173: 9,400 | J173: 3,760 | K173: 5,640 | L173: 3,760 | M173: 3,760 | N173: 3,760
A174: 산림축산과 | B174: 은풍면 은풍준시길 51-3 | C174: =REPLACE(D174,2,1,"O") -> 변O영 | D174: 변우영 | E174: 산림작물생산단지조성(소액) | F174: 민간자본사업보조 | G174: 9,400천원 * 1식 * 40% | H174: 0 | I174: 9,400 | J174: 3,760 | K174: 5,640 | L174: 3,760 | M174: 3,760 | N174: 3,760
A175: 산림축산과 | B175: 용궁면 강당길 38-15 | C175: =REPLACE(D175,2,1,"O") -> 전O동 | D175: 전병동 | E175: 산림작물생산단지조성(소액) | F175: 민간자본사업보조 | G175: 41,970천원 * 1식 * 40% | H175: 0 | I175: 41,970 | J175: 16,788 | K175: 25,182 | L175: 16,788 | M175: 16,788 | N175: 16,788
A176: 산림축산과 | B176: 지보면 마산리 281 | C176: =REPLACE(D176,2,1,"O") -> 노O숙 | D176: 노경숙 | E176: 꿀벌 화분 지원 | F176: 민간자본사업보조 | G176: 8천원 * 240kg * 60% | H176: 0 | I176: 1,920 | J176: 1,152 | K176: 768 | L176: 1,152 | M176: 1,152 | N176: 1,152
A177: 산림축산과 | B177: 풍양면 상풍로 1355-5 | C177: =REPLACE(D177,2,1,"O") -> 김O복 | D177: 김영복 | E177: 꿀벌 화분 지원 | F177: 민간자본사업보조 | G177: 8천원 * 220kg * 60% | H177: 0 | I177: 1,760 | J177: 1,056 | K177: 704 | L177: 1,056 | M177: 1,056 | N177: 1,056
A178: 산림축산과 | B178: 예천읍 봉덕로 52 | C178: =REPLACE(D178,2,1,"O") -> 송O석 | D178: 송주석 | E178: 꿀벌 화분 지원 | F178: 민간자본사업보조 | G178: 8천원 * 100kg * 60% | H178: 0 | I178: 800 | J178: 480 | K178: 320 | L178: 480 | M178: 480 | N178: 480
A179: 산림축산과 | B179: 용문면 상금시장길 27 | C179: =REPLACE(D179,2,1,"O") -> 신O균 | D179: 신정균 | E179: 꿀벌 화분 지원 | F179: 민간자본사업보조 | G179: 8천원 * 160kg * 60% | H179: 0 | I179: 1,280 | J179: 768 | K179: 512 | L179: 768 | M179: 768 | N179: 768
A180: 산림축산과 | B180: 보문면 방점이길 31 | C180: =REPLACE(D180,2,1,"O") -> 정O호 | D180: 정정호 | E180: 꿀벌 화분 지원 | F180: 민간자본사업보조 | G180: 8천원 * 100kg * 60% | I180: 800 | J180: 480 | K180: 320 | L180: 480 | M180: 480 | N180: 480
A181: 산림축산과 | B181: 유천면 초적길 20 | C181: =REPLACE(D181,2,1,"O") -> 최O홍 | D181: 최병홍 | E181: 꿀벌 화분 지원 | F181: 민간자본사업보조 | G181: 8천원 * 160kg * 60% | I181: 1,280 | J181: 768 | K181: 512 | L181: 768 | M181: 768 | N181: 768
A182: 산림축산과 | B182: 풍양면 삼강로 743-19 | C182: =REPLACE(D182,2,1,"O") -> 홍O기 | D182: 홍윤기 | E182: 꿀벌 화분 지원 | F182: 민간자본사업보조 | G182: 8천원 * 160kg * 60% | I182: 1,280 | J182: 768 | K182: 512 | L182: 768 | M182: 768 | N182: 768
A183: 산림축산과 | B183: 호명면 행복로 215 | C183: =REPLACE(D183,2,1,"O") -> 박O훈 | D183: 박명훈 | E183: 꿀벌 화분 지원 | F183: 민간자본사업보조 | G183: 8천원 * 150kg * 60% | I183: 1,200 | J183: 720 | K183: 480 | L183: 720 | M183: 720 | N183: 720
A184: 산림축산과 | B184: 지보면 마산리 325 | C184: =REPLACE(D184,2,1,"O") -> 엄O락 | D184: 엄재락 | E184: 꿀벌 화분 지원 | F184: 민간자본사업보조 | G184: 8천원 * 100kg * 60% | I184: 800 | J184: 480 | K184: 320 | L184: 480 | M184: 480 | N184: 480
A185: 산림축산과 | B185: 용궁면 덕계1길 133 | C185: =REPLACE(D185,2,1,"O") -> 도O환 | D185: 도재환 | E185: 꿀벌 화분 지원 | F185: 민간자본사업보조 | G185: 8천원 * 140kg * 60% | I185: 1,120 | J185: 672 | K185: 448 | L185: 672 | M185: 672 | N185: 672
A186: 산림축산과 | B186: 용문면 금당실길 68 | C186: =REPLACE(D186,2,1,"O") -> 신O민 | D186: 신현민 | E186: 꿀벌 화분 지원 | F186: 민간자본사업보조 | G186: 8천원 * 140kg * 60% | I186: 1,120 | J186: 672 | K186: 448 | L186: 672 | M186: 672 | N186: 672
A187: 산림축산과 | B187: 예천읍 땅골못길 197-8 | C187: =REPLACE(D187,2,1,"O") -> 윤O한 | D187: 윤여한 | E187: 꿀벌 화분 지원 | F187: 민간자본사업보조 | G187: 8천원 * 120kg * 60% | I187: 960 | J187: 576 | K187: 384 | L187: 576 | M187: 576 | N187: 576
A188: 산림축산과 | B188: 지보면 어신3길 225 | C188: =REPLACE(D188,2,1,"O") -> 박O식 | D188: 박창식 | E188: 꿀벌 화분 지원 | F188: 민간자본사업보조 | G188: 8천원 * 120kg * 60% | I188: 960 | J188: 576 | K188: 384 | L188: 576 | M188: 576 | N188: 576
A189: 산림축산과 | B189: 예천읍 광대원길 52-4 | C189: =REPLACE(D189,2,1,"O") -> 배O환 | D189: 배세환 | E189: 꿀벌 화분 지원 | F189: 민간자본사업보조 | G189: 8천원 * 50kg * 60% | I189: 400 | J189: 240 | K189: 160 | L189: 240 | M189: 240 | N189: 240
A190: 산림축산과 | B190: 지보면 마산리 533, 805 | C190: =REPLACE(D190,2,1,"O") -> 장O용 | D190: 장석용 | E190: 꿀벌 화분 지원 | F190: 민간자본사업보조 | G190: 8천원 * 100kg * 60% | I190: 800 | J190: 480 | K190: 320 | L190: 480 | M190: 480 | N190: 480
A191: 산림축산과 | B191: 지보면 어신리 522 | C191: =REPLACE(D191,2,1,"O") -> 최O순 | D191: 최옥순 | E191: 꿀벌 화분 지원 | F191: 민간자본사업보조 | G191: 8천원 * 100kg * 60% | I191: 800 | J191: 480 | K191: 320 | L191: 480 | M191: 480 | N191: 480
A192: 산림축산과 | B192: 지보면 만화2리 405 | C192: =REPLACE(D192,2,1,"O") -> 전O학 | D192: 전병학 | E192: 꿀벌 화분 지원 | F192: 민간자본사업보조 | G192: 8천원 * 70kg * 60% | I192: 560 | J192: 336 | K192: 224 | L192: 336 | M192: 336 | N192: 336
A193: 산림축산과 | B193: 용문면 사부령길 329 | C193: =REPLACE(D193,2,1,"O") -> 배O달 | D193: 배원달 | E193: 꿀벌 화분 지원 | F193: 민간자본사업보조 | G193: 8천원 * 80kg * 60% | I193: 640 | J193: 384 | K193: 256 | L193: 384 | M193: 384 | N193: 384
A194: 산림축산과 | B194: 은풍면 송월길 97-5 | C194: =REPLACE(D194,2,1,"O") -> 이O열 | D194: 이기열 | E194: 꿀벌 화분 지원 | F194: 민간자본사업보조 | G194: 8천원 * 80kg * 60% | I194: 640 | J194: 384 | K194: 256 | L194: 384 | M194: 384 | N194: 384
A195: 산림축산과 | B195: 예천읍 봉덕로 52 | C195: =REPLACE(D195,2,1,"O") -> 지O호 | D195: 지우호 | E195: 꿀벌 화분 지원 | F195: 민간자본사업보조 | G195: 8천원 * 80kg * 60% | I195: 640 | J195: 384 | K195: 256 | L195: 384 | M195: 384 | N195: 384
A196: 산림축산과 | B196: 은풍면 은풍로 63-5 | C196: =REPLACE(D196,2,1,"O") -> 김O혁 | D196: 김동혁 | E196: 꿀벌 화분 지원 | F196: 민간자본사업보조 | G196: 8천원 * 80kg * 60% | I196: 640 | J196: 384 | K196: 256 | L196: 384 | M196: 384 | N196: 384
A197: 산림축산과 | B197: 유천면 수심1길 98 | C197: =REPLACE(D197,2,1,"O") -> 김O선 | D197: 김홍선 | E197: 꿀벌 화분 지원 | F197: 민간자본사업보조 | G197: 8천원 * 70kg * 60% | I197: 560 | J197: 336 | K197: 224 | L197: 336 | M197: 336 | N197: 336
A198: 산림축산과 | B198: 용궁면 덕계1길 104-6 | C198: =REPLACE(D198,2,1,"O") -> 도O웅 | D198: 도일웅 | E198: 꿀벌 화분 지원 | F198: 민간자본사업보조 | G198: 8천원 * 70kg * 60% | I198: 560 | J198: 336 | K198: 224 | L198: 336 | M198: 336 | N198: 336
A199: 산림축산과 | B199: 용문면 우망골길 100-10 | C199: =REPLACE(D199,2,1,"O") -> 윤O명 | D199: 윤석명 | E199: 꿀벌 화분 지원 | F199: 민간자본사업보조 | G199: 8천원 * 70kg * 60% | I199: 560 | J199: 336 | K199: 224 | L199: 336 | M199: 336 | N199: 336
A200: 산림축산과 | B200: 은풍면 은풍로 380 | C200: =REPLACE(D200,2,1,"O") -> 김O명 | D200: 김재명 | E200: 꿀벌 화분 지원 | F200: 민간자본사업보조 | G200: 8천원 * 60kg * 60% | I200: 480 | J200: 288 | K200: 192 | L200: 288 | M200: 288 | N200: 288
... 524 more rows
